[Event "44th Chess Olympiad Open 2022"]
[Site "Chennai"]
[Date "2022.08.05"]
[Round "7.72"]
[White "Knowles, Kendrick"]
[Black "Blackman, Justin"]
[Result "0-1"]
[ECO "E67"]
[WhiteElo "1907"]
[BlackElo "2195"]
[Annotator "NA RC"]
[PlyCount "108"]
[EventDate "2022.07.29"]
[EventType "team-tourn"]
[EventCountry "IND"]
[SourceTitle "playchess.com"]
[Source "ChessBase"]
[SourceQuality "1"]
[WhiteTeam "Bahamas"]
[BlackTeam "Barbados"]
[WhiteTeamCountry "BAH"]
[BlackTeamCountry "BAR"]
[TimeControl "40/5400+30:1800+30"]

1. Nf3 {[%emt 0:00:24]} Nf6 {[%emt 0:00:07]} 2. d4 {[%emt 0:00:32]} d6 {[%emt 0:00:08]} 3. c4 {[%emt 0:02:00]} g6 {[%emt 0:00:05]} 4. g3 {[%emt 0:00:15]} Bg7 {[%emt 0:00:05]} 5. Bg2 {[%emt 0:00:25]} O-O {[%emt 0:00:13]} 6. Nc3 {[%emt 0:00:11]} Nbd7 {[%emt 0:00:06]} 7. b3 {[%emt 0:00:28]} e5 {[%emt 0:00:12]} 8. O-O {[%emt 0:02:15]} Re8 {[%emt 0:00:07]} 9. e3 {[%emt 0:00:35]} a6 {[%emt 0:06:40]} 10. a4 {[%emt 0:02:54]} a5 {[%emt 0:00:29]} 11. Ba3 {[%emt 0:00:23]} exd4 {[%emt 0:00:58]} 12. Nxd4 {[%emt 0:00:23]} Nc5 {[%emt 0:02:28]} 13. Bxc5 {[%emt 0:00:50]} dxc5 {[%emt 0:00:06]} 14. Ndb5 {[%emt 0:00:14]} Qe7 {[%emt 0:01:20]} 15. Qf3 {[%emt 0:02:12]} c6 {[%emt 0:04:55]} 16. Na3 {[%emt 0:00:27]} Bf5 {[%emt 0:04:37]} 17. Rac1 {[%emt 0:05:18]} Rad8 {[%emt 0:00:06]} 18. Nab1 {[%emt 0:01:25]} Qe6 {[%emt 0:09:53]} 19. Qf4 {[%emt 0:08:37]} Rd7 {[%emt 0:06:15]} 20. Rfe1 {[%emt 0:07:10]} Nh5 {[%emt 0:06:48]} 21. Qf3 {[%emt 0:02:09]} Red8 {[%emt 0:01:59]} 22. e4 {[%emt 0:00:00]} Bg4 {[%emt 0:00:22]} 23. Qe3 {[%emt 0:06:54]} Rd3 {[%emt 0:00:06]} 24. Qxc5 {[%emt 0:00:54]} Bd4 {[%emt 0:02:21]} 25. Qxa5 {[%emt 0:04:34]} Qf6 {[%emt 0:01:00]} 26. Rc2 {[%emt 0:01:00]} b6 {[%emt 0:00:30]} 27. e5 {[%emt 0:05:33]} Qe7 {[%emt 0:04:39]} 28. Qa6 {[%emt 0:01:38]} Bc8 {[%emt 0:00:37]} 29. Nd5 {[%emt 0:04:01]} cxd5 {[%emt 0:00:09]} 30. Qb5 {[%emt 0:00:09]} dxc4 {[%emt 0:00:51]} 31. bxc4 {[%emt 0:04:08]} Bc5 {[%emt 0:04:01]} 32. Nc3 {[%emt 0:01:22]} Bb4 {[%emt 0:00:59]} 33. Nd5 {[%emt 0:01:39]} R3xd5 {[%emt 0:00:14]} 34. cxd5 {[%emt 0:00:55]} Bxe1 {[%emt 0:00:07]} 35. Qxb6 {[%emt 0:00:28]} Rf8 {[%emt 0:09:22]} 36. d6 {[%emt 0:07:04]} Qxe5 {[%emt 0:04:00]} 37. Rxc8 {[%emt 0:00:45]} Rxc8 {[%emt 0:00:08]} 38. d7 {[%emt 0:00:08]} Bxf2+ {[%emt 0:00:45]} 39. Qxf2 {[%emt 0:00:55]} Rc1+ {[%emt 0:00:17]} 40. Bf1 {[%emt 0:00:18]} Rd1 {[%emt 0:00:25]} 41. Qa7 {[%emt 0:33:32]} Qd4+ {[%emt 0:30:30]} 42. Qxd4 {[%emt 0:00:31]} Rxd4 {[%emt 0:00:02]} 43. Bb5 {[%emt 0:00:09]} Nf6 {[%emt 0:00:09]} 44. a5 {[%emt 0:00:21]} Nxd7 {[%emt 0:00:06]} 45. a6 {[%emt 0:00:09]} Nc5 {[%emt 0:01:57]} 46. Kf2 {[%emt 0:00:21]} Rd2+ {[%emt 0:00:07]} 47. Ke3 {[%emt 0:00:08]} Ra2 {[%emt 0:00:06]} 48. Bc4 {[%emt 0:00:32]} Ra3+ {[%emt 0:00:10]} 49. Kd4 {[%emt 0:00:08]} Nxa6 {[%emt 0:00:05]} 50. h4 {[%emt 0:00:28]} Nc7 {[%emt 0:00:13]} 51. g4 {[%emt 0:00:18]} Rh3 {[%emt 0:00:30]} 52. h5 {[%emt 0:00:14]} gxh5 {[%emt 0:00:09]} 53. gxh5 {[%emt 0:00:20]} Rxh5 {[%emt 0:00:08]} 54. Bd3 {[%emt 0:00:21]} Ne6+ {[%emt 0:00:12]} 0-1

[Event "44th Chess Olympiad Open 2022"]
[Site "Chennai"]
[Date "2022.08.05"]
[Round "7.72"]
[White "Edwards, Emar"]
[Black "Karelina, Polina"]
[Result "1-0"]
[ECO "B07"]
[WhiteElo "1695"]
[BlackElo "1835"]
[Annotator "NA RC COMBH"]
[PlyCount "97"]
[EventDate "2022.07.29"]
[EventType "team-tourn"]
[EventCountry "IND"]
[SourceTitle "playchess.com"]
[Source "ChessBase"]
[SourceQuality "1"]
[WhiteTeam "Barbados"]
[BlackTeam "Bahamas"]
[WhiteTeamCountry "BAR"]
[BlackTeamCountry "BAH"]
[TimeControl "40/5400+30:1800+30"]

1. e4 {[%emt 0:00:03]} d6 {[%emt 0:00:21]} 2. d4 {[%emt 0:00:09]} Nf6 {[%emt 0:00:13]} 3. Nc3 {[%emt 0:00:04]} c6 {[%emt 0:00:31]} 4. f4 {[%emt 0:00:08]} Qa5 {[%emt 0:01:10]} 5. Bd3 {[%emt 0:00:04]} e5 {[%emt 0:01:40]} 6. dxe5 {[%emt 0:00:04]} dxe5 {[%emt 0:00:12]} 7. Nf3 {[%emt 0:00:03]} Nbd7 {[%emt 0:10:03]} 8. O-O {[%emt 0:01:27]} Bd6 {[%emt 0:10:25]} 9. f5 {[%emt 0:12:32]} h6 {[%emt 0:05:47]} 10. Kh1 {[%emt 0:02:16]} Nf8 {[%emt 0:03:33]} 11. Qe2 {[%emt 0:04:48]} N8h7 {[%emt 0:04:26]} 12. Bd2 {[%emt 0:02:01]} Qc7 {[%emt 0:00:18]} 13. Rad1 {[%emt 0:02:52]} Bd7 {[%emt 0:07:25]} 14. Bc4 {[%emt 0:01:03]} b5 {[%emt 0:05:58]} 15. Bb3 {[%emt 0:02:11]} a5 {[%emt 0:01:24]} 16. a4 {[%emt 0:02:07]} b4 {[%emt 0:00:27]} 17. Nb1 {[%emt 0:10:42]} c5 {[%emt 0:01:57]} 18. Bc1 {[%emt 0:02:47]} Bc6 {[%emt 0:04:25]} 19. Nbd2 {[%emt 0:01:41]} O-O {[%emt 0:04:49]} 20. Nc4 {[%emt 0:32:20]} Nxe4 {[%emt 0:04:15]} 21. Nxd6 {[%emt 0:00:51]} Nxd6 {[%emt 0:00:11]} 22. Qxe5 {[%emt 0:01:55]} Bxf3 {[%emt 0:04:17]} 23. Rxf3 {[%emt 0:05:49]} Rfe8 {[%emt 0:02:56]} 24. Qg3 {[%emt 0:00:31]} c4 {[%emt 0:03:33]} 25. Bxh6 {[%emt 0:02:34]} f6 {[%emt 0:03:25]} 26. Bxc4+ {[%emt 0:01:22]} Kh8 {[%emt 0:00:54]} 27. Bxg7+ {[%emt 0:04:33]} Qxg7 {[%emt 0:00:10]} 28. Qxg7+ {[%emt 0:01:06]} Kxg7 {[%emt 0:00:06]} 29. Rxd6 {[%emt 0:01:03]} Ng5 {[%emt 0:02:07]} 30. Rd7+ {[%emt 0:01:34]} Kf8 {[%emt 0:01:33]} 31. Rf1 {[%emt 0:00:28]} Rac8 {[%emt 0:03:58]} 32. b3 {[%emt 0:01:16]} Re5 {[%emt 0:01:25]} 33. Kg1 {[%emt 0:01:35]} Ne4 {[%emt 0:03:19]} 34. Re1 {[%emt 0:01:13]} Rcc5 {[%emt 0:03:12]} 35. Bd3 {[%emt 0:01:24]} Nc3 {[%emt 0:00:26]} 36. Rxe5 {[%emt 0:00:21]} Rxe5 {[%emt 0:00:20]} 37. h4 {[%emt 0:00:21]} Nd1 {[%emt 0:01:45]} 38. Bc4 {[%emt 0:00:56]} Re1+ {[%emt 0:01:58]} 39. Kh2 {[%emt 0:00:02]} Ne3 {[%emt 0:00:24]} 40. Bd3 {[%emt 0:00:55]} Rd1 {[%emt 0:00:09]} 41. Bb5 {[%emt 0:30:59]} Rxd7 {[%emt 0:31:42]} 42. Bxd7 {[%emt 0:00:14]} Nxc2 {[%emt 0:00:21]} 43. g4 {[%emt 0:00:41]} Nd4 {[%emt 0:03:26]} 44. Be6 {[%emt 0:00:16]} Kg7 {[%emt 0:00:00]} 45. Kg3 {[%emt 0:00:00]} Ne2+ {[%emt 0:00:00]} 46. Kf3 {[%emt 0:00:00]} Ng1+ {[%emt 0:00:00]} 47. Ke3 {[%emt 0:00:00]} Kh6 {[%emt 0:00:00]} 48. Bd5 {[%emt 0:00:00]} Kg7 {[%emt 0:00:00]} 49. Bg2 {[%emt 0:00:00]} 1-0

[Event "44th Chess Olympiad Open 2022"]
[Site "Chennai"]
[Date "2022.08.05"]
[Round "7.72"]
[White "Lockhart, Kenville"]
[Black "Parsons, Justin"]
[Result "0-1"]
[ECO "D02"]
[WhiteElo "1551"]
[BlackElo "1749"]
[Annotator "NA RC COMBH"]
[PlyCount "52"]
[EventDate "2022.07.29"]
[EventType "team-tourn"]
[EventCountry "IND"]
[SourceTitle "playchess.com"]
[Source "ChessBase"]
[SourceQuality "1"]
[WhiteTeam "Bahamas"]
[BlackTeam "Barbados"]
[WhiteTeamCountry "BAH"]
[BlackTeamCountry "BAR"]
[TimeControl "40/5400+30:1800+30"]

1. d4 {[%emt 0:00:04]} Nf6 {[%emt 0:00:25]} 2. Nf3 {[%emt 0:00:38]} e6 {[%emt 0:00:21]} 3. Bf4 {[%emt 0:00:20]} Be7 {[%emt 0:00:48]} 4. e3 {[%emt 0:01:01]} O-O {[%emt 0:00:20]} 5. Nbd2 {[%emt 0:00:26]} d5 {[%emt 0:00:14]} 6. Bd3 {[%emt 0:00:32]} c5 {[%emt 0:01:33]} 7. c3 {[%emt 0:00:22]} b6 {[%emt 0:00:43]} 8. e4 {[%emt 0:03:01]} dxe4 {[%emt 0:03:37]} 9. Nxe4 {[%emt 0:01:55]} Nd5 {[%emt 0:02:52]} 10. Bg3 {[%emt 0:05:04]} f5 {[%emt 0:02:59]} 11. Bxb8 {[%emt 0:06:17]} fxe4 {[%emt 0:02:36]} 12. Bxe4 {[%emt 0:00:05]} Rxb8 {[%emt 0:00:18]} 13. Qa4 {[%emt 0:06:35]} Qc7 {[%emt 0:13:35]} 14. O-O {[%emt 0:07:36]} Bb7 {[%emt 0:01:07]} 15. Qc2 {[%emt 0:02:52]} Nf6 {[%emt 0:11:50]} 16. Bxb7 {[%emt 0:03:36]} Rxb7 {[%emt 0:01:14]} 17. dxc5 {[%emt 0:03:11]} Bxc5 {[%emt 0:04:46]} 18. Ng5 {[%emt 0:01:27]} Qe5 {[%emt 0:02:32]} 19. Nf3 {[%emt 0:01:12]} Qh5 {[%emt 0:00:33]} 20. h3 {[%emt 0:05:02]} Rbf7 {[%emt 0:10:14]} 21. b4 {[%emt 0:09:56]} Bd6 {[%emt 0:01:13]} 22. Rad1 {[%emt 0:01:17]} Bc7 {[%emt 0:01:30]} 23. c4 {[%emt 0:05:19]} Ne8 {[%emt 0:03:26]} 24. Qe4 {[%emt 0:08:26]} Rxf3 {[%emt 0:03:29]} 25. gxf3 {[%emt 0:00:00]} Qxh3 {[%emt 0:00:36]} 26. Qxe6+ {[%emt 0:13:27]} Qxe6 {[%emt 0:00:14]} 0-1

[Event "44th Chess Olympiad Open 2022"]
[Site "Chennai"]
[Date "2022.08.05"]
[Round "7.73"]
[White "Fuad, Ahmed Mufleh"]
[Black "Gurner, Jem"]
[Result "0-1"]
[ECO "B06"]
[WhiteElo "2086"]
[BlackElo "1800"]
[Annotator "TA"]
[PlyCount "102"]
[EventDate "2022.07.29"]
[EventType "team-tourn"]
[EventCountry "IND"]
[SourceTitle "playchess.com"]
[Source "ChessBase"]
[SourceQuality "1"]
[WhiteTeam "Yemen"]
[BlackTeam "Channel Islands"]
[WhiteTeamCountry "YEM"]
[BlackTeamCountry "JCI"]
[TimeControl "40/5400+30:1800+30"]

{[%evp 9,102,17,24,-12,-11,-37,-31,-62,-25,-62,-60,-51,-59,-100,-102,-145,-123,-119,-109,-179,-185,-175,-172,-180,-170,-210,-198,-194,-181,-180,-177,-212,-109,-131,-138,-235,-234,-239,-226,-240,-233,-232,-231,-281,-245,-278,-225,-339,-331,-345,-328,-333,-304,-317,-288,-296,-280,-295,-281,-314,-274,-272,-270,-317,-293,-334,-347,-322,-324,-422,-415,-592,-614,-691,-702,-814,-795,-857,-851,-821,-791,-2259,-2244,-2115,-1952,-2016,-1266,-4727,-4714,-29977,-29978,-29976,-29977,-29975,-29977]} 1. d4 {[%emt 0:00:24]} g6 {[%emt 0:00:04]} 2. e4 {[%emt 0:00:29]} Bg7 {[%emt 0:00:04]} 3. Be3 {[%emt 0:00:21]} d6 {[%emt 0:00:49]} 4. Bd3 {[%emt 0:01:15]} c5 {[%emt 0:02:45]} 5. c3 {[%emt 0:00:41]} cxd4 {[%emt 0:00:58]} 6. Bxd4 {[%emt 0:01:06] B06: Modern Defence.} Nf6 {[%emt 0:01:08] [#]} 7. Nd2 $146 {[%emt 0:01:02]} ({Predecessor:} 7. Nf3 O-O 8. O-O Nc6 9. Be3 Bg4 10. Nbd2 Ne5 11. Be2 Bxf3 12. Bxf3 Qc7 13. Be2 {½-½ (36) Luong,H (1982)-Vo,T (1766) Bac Giang 2020}) 7... O-O {[%emt 0:00:44]} 8. Ne2 {[%emt 0:00:48] Black is slightly better.} Nc6 {[%emt 0:00:41]} (8... e5 $5 {[%cal Re5d4]} 9. Be3 Ng4 $15) 9. O-O {[%emt 0:03:19]} e5 {[%emt 0:04:29]} 10. Be3 {[%emt 0:08:54]} Ng4 {[%emt 0:00:32]} 11. a4 {[%emt 0:02:16]} Be6 {[%emt 0:05:42]} ({Much worse is} 11... Qh4 $6 12. Nf3 Nxe3 13. Nxh4 $15) 12. Re1 {[%emt 0:05:38]} Nxe3 {[%emt 0:03:21]} ({Weaker is} 12... Qh4 13. Nf3 Nxe3 14. Nxh4 $15) 13. fxe3 {[%emt 0:00:13]} Qb6 {[%emt 0:01:22]} 14. Nf1 {[%emt 0:00:28]} (14. Kh1 $17 {is a better defense.}) 14... Qxb2 $19 {[%emt 0:07:41]} 15. Rb1 {[%emt 0:00:27]} Qa3 {[%emt 0:00:43]} 16. Rxb7 {[%emt 0:00:32]} Rab8 {[%emt 0:06:05]} 17. Rxb8 {[%emt 0:13:11]} Rxb8 {[%emt 0:00:11]} 18. Qa1 {[%emt 0:01:48]} Qxa1 {[%emt 0:08:12]} 19. Rxa1 {[%emt 0:00:10]} Na5 {[%emt 0:00:56]} 20. Bb5 {[%emt 0:03:05]} Bc4 {[%emt 0:05:39]} (20... Nb7 $19 21. Rd1 Bf8) 21. Nc1 {[%emt 0:08:38]} Bh6 {[%emt 0:04:59] Black is more active.} 22. Bxc4 {[%emt 0:06:37]} (22. Kf2 $17) 22... Nxc4 {[%emt 0:00:08]} 23. Kf2 {[%emt 0:00:56]} Rb2+ {[%emt 0:03:39]} 24. Kf3 {[%emt 0:00:16]} Rc2 {[%emt 0:05:52][%cal Oh6e3]} 25. Ne2 {[%emt 0:01:21]} a5 {[%emt 0:03:50]} 26. Kf2 {[%emt 0:12:09]} Kf8 {[%emt 0:01:16]} 27. Kf3 {[%emt 0:01:09]} Ke7 {[%emt 0:00:27]} 28. Kf2 {[%emt 0:00:10]} (28. h4 $142) 28... Ke6 {[%emt 0:01:06]} 29. Kf3 {[%emt 0:00:08]} Bg5 {[%emt 0:01:26]} 30. g4 {[%emt 0:01:07]} Bd8 {[%emt 0:01:48]} 31. Kf2 {[%emt 0:00:24]} Bb6 {[%emt 0:00:47]} 32. Kf3 {[%emt 0:00:17]} Bc5 {[%emt 0:01:04]} 33. Kf2 {[%emt 0:00:39]} Rb2 {[%emt 0:01:29]} 34. Kf3 {[%emt 0:00:50]} Rb3 {[%emt 0:00:47]} 35. Kf2 {[%emt 0:00:34]} Ba3 {[%emt 0:07:37]} 36. Ke1 {[%emt 0:03:29]} Bb2 {[%emt 0:02:35]} 37. Rb1 {[%emt 0:01:01]} Bxc3+ {[%emt 0:02:48]} 38. Nxc3 {[%emt 0:00:14]} Rxc3 {[%emt 0:00:07][%mdl 4096] Endgame KRN-KRN} 39. Rb8 {[%emt 0:02:31]} Ra3 {[%emt 0:01:28]} 40. Rh8 {[%emt 0:00:37]} (40. Ke2 {might work better.}) 40... Nxe3 {[%emt 0:00:49]} 41. Nxe3 {[%emt 0:30:44]} Rxe3+ {[%emt 0:30:09] KR-KR} 42. Kf2 {[%emt 0:00:07]} Rxe4 {[%emt 0:00:11]} 43. Kf3 {[%emt 0:00:05]} Rf4+ {[%emt 0:00:45]} 44. Kg3 {[%emt 0:00:14]} Rxa4 {[%emt 0:00:15] [#] White must now prevent ...Ra1.} 45. Rxh7 {[%emt 0:00:28]} Ra1 {[%emt 0:00:30]} 46. Rh8 {[%emt 0:00:32]} a4 {[%emt 0:00:15][%cal Ba5a4,Ba4a3,Ba3a2][%mdl 32]} 47. Ra8 {[%emt 0:02:06]} a3 {[%emt 0:00:11] aiming for ...a2.} 48. Kg2 {[%emt 0:00:28]} a2 {[%emt 0:00:15]} 49. Ra5 {[%emt 0:01:35]} e4 {[%emt 0:00:27][%cal Be5e4,Be4e3][%mdl 32] Black mates.} 50. Ra3 {[%emt 0:00:20]} Kf6 {[%emt 0:00:29]} 51. h4 {[%emt 0:00:12]} e3 {[%emt 0:00:29] Weighted Error Value: White=0.77/Black=0.10 (very precise)} 0-1

[Event "44th Chess Olympiad Open 2022"]
[Site "Chennai"]
[Date "2022.08.05"]
[Round "7.73"]
[White "Muhammed, Shuaau"]
[Black "Carpenter, Paul A"]
[Result "1/2-1/2"]
[ECO "B07"]
[WhiteElo "1987"]
[BlackElo "1938"]
[Annotator "TA"]
[PlyCount "104"]
[EventDate "2022.07.29"]
[EventType "team-tourn"]
[EventCountry "IND"]
[SourceTitle "playchess.com"]
[Source "ChessBase"]
[SourceQuality "1"]
[WhiteTeam "Maldives"]
[BlackTeam "Channel Islands"]
[WhiteTeamCountry "MDV"]
[BlackTeamCountry "JCI"]
[TimeControl "40/5400+30:1800+30"]

{[%evp 9,104,-12,-15,-7,-18,-15,-10,-12,2,2,-7,-32,-28,-34,21,31,12,0,0,0,0,0,5,0,0,-12,0,-16,-9,-36,0,-16,-16,-16,-15,-43,-43,-43,-12,-43,-43,-158,-165,-165,-158,-212,-114,-154,-141,-217,-212,-193,-100,-103,-114,-103,-75,-80,-8,-8,0,-24,0,0,0,-17,0,-59,0,-8,-8,-8,0,8,8,0,0,0,0,0,0,-8,-8,-8,-8,-8,8,8,9,12,12,8,8,8,8,8,8]} 1. e4 {[%emt 0:00:04]} d6 {[%emt 0:00:08]} 2. d4 {[%emt 0:00:05]} Nf6 {[%emt 0:00:11]} 3. Nc3 {[%emt 0:00:02]} c6 {[%emt 0:00:13]} 4. Bg5 {[%emt 0:01:16]} Nbd7 {[%emt 0:01:36]} 5. Qd2 {[%emt 0:01:08]} e5 {[%emt 0:02:36]} 6. f4 {[%emt 0:08:43] B07: Pirc Defence: Miscellaneous Systems.} h6 {[%emt 0:30:27]} 7. Bxf6 {[%emt 0:01:00]} Qxf6 {[%emt 0:11:21]} 8. Nge2 {[%emt 0:13:12]} Be7 {[%emt 0:17:50]} 9. g3 {[#]} Nb6 $146 {[%emt 0:13:13]} ({Predecessor:} 9... O-O 10. Bg2 Nb6 11. b3 exd4 12. Nxd4 Qg6 13. O-O Bd7 14. Rae1 Rad8 15. a4 Na8 {0-1 (39) De Seroux,C (2008)-Meszaros,G (2437) Geneve 2010}) 10. b3 {[%emt 0:02:55] Against Nc4} Bg4 {[%emt 0:00:00]} 11. Bg2 {[%emt 0:07:55]} Bxe2 {[%emt 0:00:00]} ({Black should play} 11... g5 $15) 12. Nxe2 $11 {[%emt 0:02:18]} exd4 {[%emt 0:00:00][%cal Od4d3]} 13. Qxd4 {[%emt 0:01:26]} ({Of course not} 13. Nxd4 c5 14. e5 dxe5 $17) 13... Qxd4 {[%emt 0:00:00]} 14. Nxd4 Bf6 {[%emt 0:01:33]} 15. O-O-O {[%emt 0:01:14]} O-O-O {[%emt 0:01:44]} 16. c4 {[%emt 0:01:33]} (16. a4 $5 {[%cal Ra4a5]}) 16... g6 {[%emt 0:02:36] Inhibits Nf5.} 17. h4 {[%emt 0:00:26]} h5 {[%emt 0:05:37]} 18. Rd3 {[%emt 0:00:54]} Kc7 {[%emt 0:01:22]} 19. Kc2 {[%emt 0:01:08]} a5 {[%emt 0:24:30]} 20. Ne2 {[%emt 0:26:12]} Nd7 {[%emt 0:00:00][%cal Oa5a4]} 21. Nc3 {[%emt 0:00:42]} Nc5 {[%emt 0:00:32]} 22. Re3 {[%emt 0:00:24]} Rhe8 {[%emt 0:01:24]} 23. Rhe1 {[%emt 0:00:23]} Ne6 {[%emt 0:04:19]} 24. Ne2 {[%emt 0:04:45]} Re7 {[%emt 0:08:45]} 25. e5 {[%emt 0:12:31]} (25. Nc3 $15) 25... dxe5 $17 {[%emt 0:00:00]} 26. fxe5 Bg7 27. Bh3 {[%emt 0:02:23]} (27. Rd1 $17) 27... Rde8 {[%emt 0:02:09]} ({Black should try} 27... Bh6 $1 $19 {[%cal Rh6e3]} 28. Rf3 (28. Rd3 $2 Rxd3 29. Kxd3 Nc5+ 30. Kd4 f5 $19) 28... Rd2+ 29. Kb1 Nc5) 28. Rf1 {[%emt 0:02:55]} Nd8 {[%emt 0:00:00]} 29. e6 (29. Kd3 $17 {was worth a try.}) 29... f5 $1 $19 {[%emt 0:01:35]} ({Stronger than} 29... Nxe6 30. Bxe6 fxe6 31. Nf4 $15) 30. Nf4 {[%emt 0:02:04] [#]} Nxe6 {[%emt 0:00:00]} (30... Bh6 $1 $19 {aiming for ...Bxf4.} 31. Bg2 Bxf4 32. gxf4 Rxe6) 31. Rfe1 $17 {[%emt 0:01:23][%cal Re3e6]} Nd4+ {[%emt 0:00:00]} 32. Kd3 Rxe3+ {[%emt 0:00:00]} 33. Rxe3 {[%emt 0:00:03] [#]} Rxe3+ {[%emt 0:00:00]} (33... Rd8 $1 $17 {White must now prevent ...Nxb3+.} 34. Re7+ Kb8 35. Nxg6 Nxb3+ 36. Kc2 Nd4+ 37. Kb1 Bh6) 34. Kxe3 {[%emt 0:00:01][%mdl 4096] Endgame KBN-KBN} Nc2+ {[%emt 0:01:47]} 35. Kf3 Nd4+ {[%emt 0:00:00]} 36. Kf2 {[%emt 0:02:17]} Kd6 {[%emt 0:02:16]} 37. Nxg6 {[%emt 0:00:02]} Bh6 {[%emt 0:00:00]} 38. Bg2 {[%emt 0:00:59]} (38. Nf4 $11) 38... Ke6 {[%emt 0:00:00]} (38... Kc5 $1 $15 39. Bh3 Kb4) 39. Bf3 {[%emt 0:00:03] The position is equal.} Nxf3 40. Kxf3 $11 {[%emt 0:00:02] KB-KN} b5 {[%emt 0:00:00]} 41. Nf4+ Ke5 {[%emt 0:14:21] ...Bxf4 is the strong threat.} (41... Bxf4 42. Kxf4 Kf6 43. a3 $18) 42. cxb5 {[%emt 0:19:31]} cxb5 {[%emt 0:00:00] Threatens to win with ...Bxf4.} 43. Nxh5 Kd4 {[%emt 0:13:49]} 44. Nf6 {[%emt 0:19:33]} Kc3 {[%emt 0:00:00] Strongly threatening ...Kb2.} 45. Ke2 Kb2 {[%emt 0:09:31]} 46. Kd3 {[%emt 0:00:31]} Kxa2 {[%emt 0:00:00]} 47. Kc2 {[%emt 0:02:18]} Be3 {[%emt 0:00:00]} 48. Nd5 {[%emt 0:01:09]} Bf2 {[%emt 0:01:24]} 49. Nc3+ {[%emt 0:00:00]} Ka3 {[%emt 0:01:30]} 50. Nxb5+ {[%emt 0:00:00]} Kb4 {[%emt 0:00:00]} 51. Nd6 {[%emt 0:00:00]} Bxg3 {[%emt 0:00:05]} 52. Nxf5 {[%emt 0:00:00]} Bxh4 {[%emt 0:00:00] White happily takes the draw.  Weighted Error Value: White=0.17 (very precise) /Black=0.14 (very precise)} 1/2-1/2